bitfinex/quotes_ETHUSD_20260119
["timestamp","ask_amount","ask_price","bid_price","bid_amount"]
[1768825874052,4.06838601,3229.5,3229.1,0.52577376]
[1768825874249,0.97189561,3229.4,3229.1,0.52577376]
[1768825876054,0.97189561,3229.6,3229.1,1.45016023]
[1768825876427,4.0682657,3229.6,3229.1,1.45016023]
[1768825876628,4.78490944,3229.6,3229.1,1.45016023]
[1768825877340,0.97189561,3229.5,3229.1,1.45016023]
[1768825878246,4.06842678,3229.5,3229.1,1.45016023]
[1768825878547,4.06842678,3229.5,3229.1,0.52577376]
[1768825878747,0.97189561,3229.4,3228.5,0.001]
[1768825878961,0.97189561,3229.2,3228.6,0.51]
[1768825879533,0.97189561,3229.2,3228.7,0.92438647]
[1768825879757,0.97189561,3229.2,3228.6,2.26927368]
[1768825880061,0.97189561,3229.2,3228.7,0.92438647]
[1768825880259,0.97189561,3229.4,3228.7,0.92438647]
[1768825880460,4.06826201,3229.6,3228.8,0.92438647]
[1768825880634,4.06826201,3229.6,3228.9,0.92438647]
[1768825880837,3.09831154,3229.7,3228.9,0.92438647]
[1768825881036,4.07020715,3229.7,3228.9,0.92438647]
[1768825881236,4.07020715,3229.7,3228.9,0.92538647]
[1768825882235,0.97389561,3229.7,3228.9,1.37297337]
[1768825882435,0.8696166,3229.8,3229.0,0.92438647]
[1768825882738,0.8696166,3229.8,3229.2,0.92438647]
[1768825884969,3.96587941,3229.7,3229.2,0.92438647]
[1768825885974,7.06214222,3229.7,3229.2,0.92438647]
[1768825886169,7.76835644,3229.7,3229.2,0.92438647]
[1768825887932,4.67209363,3229.7,3229.2,0.92438647]
[1768825888333,0.8696166,3229.6,3228.9,0.001]
[1768825888669,0.8696166,3229.3,3228.5,0.511]
[1768825889579,0.8686166,3229.1,3228.5,0.511]
[1768825889763,0.8686166,3229.1,3228.5,1.41228466]
[1768825890270,0.8686166,3229.1,3228.5,0.511]
[1768825890435,0.8686166,3229.0,3228.5,1e-08]
[1768825890635,0.8686166,3228.8,3228.5,1e-08]
[1768825891169,0.8686166,3228.8,3228.1,0.0008008]
[1768825891339,0.8686166,3228.8,3228.1,0.90208546]
[1768825891677,0.8686166,3228.8,3228.1,0.0008008]
[1768825892377,3.09722179,3228.7,3228.1,0.0008008]
[1768825892586,0.8686166,3228.6,3228.1,0.0008008]
[1768825894181,3.09716522,3228.8,3228.2,0.90128466]
[1768825894382,0.8686166,3228.7,3228.1,0.0008008]
[1768825894680,0.8686166,3228.6,3228.1,0.0008008]
[1768825894989,0.8686166,3228.8,3228.2,0.90128466]
[1768825895376,0.8686166,3228.7,3228.2,0.90128466]
[1768825895687,0.8686166,3228.7,3228.1,0.0008008]
[1768825896867,0.8686166,3228.6,3228.1,0.0008008]
[1768825897473,0.8686166,3228.7,3228.1,0.90208546]
[1768825897782,0.8686166,3228.6,3228.1,0.0008008]
[1768825899184,0.8686166,3228.5,3228.1,0.0008008]
[1768825901396,0.8686166,3228.4,3228.1,0.0008008]
[1768825905490,3.09741479,3228.5,3228.1,0.0008008]
[1768825905666,3.96598264,3228.6,3228.1,0.93899586]
[1768825907798,3.96598264,3228.6,3228.1,0.0008008]
[1768825907799,0.8686166,3228.5,3228.1,0.0008008]
[1768825908093,0.8686166,3228.4,3228.1,0.0008008]
[1768825908300,0.8686166,3228.4,3228.0,0.511]
[1768825909384,0.8678158,3228.2,3227.8,0.0008016]
[1768825911096,0.8678158,3228.2,3227.8,0.93899666]
[1768825911666,3.96554264,3228.2,3227.8,0.0008016]
[1768825911891,0.8678158,3228.1,3227.8,0.0008016]
[1768825912766,0.8678158,3228.0,3227.8,0.0008016]
[1768825915200,0.8678158,3227.9,3227.8,0.0008016]
[1768825916971,0.8678158,3227.9,3227.5,0.5118016]
[1768825917172,0.8678158,3227.7,3227.5,0.5118016]
[1768825919401,0.8678158,3227.9,3227.5,0.5118016]
[1768825919812,1.64480786,3227.9,3227.5,0.5118016]
[1768825920110,0.8678158,3227.8,3227.5,0.5118016]
[1768825921413,3.09817261,3227.8,3227.5,0.5118016]
[1768825921612,0.8678158,3227.7,3227.5,0.5118016]
[1768825921773,0.8678158,3227.9,3227.5,0.5118016]
[1768825923006,3.09748299,3228.5,3227.5,0.5118016]
[1768825923007,3.0975096,3228.4,3227.6,0.97314967]
[1768825923309,3.96524266,3228.5,3227.7,0.97314967]
[1768825923485,3.96524266,3228.5,3227.8,0.97314967]
[1768825923683,7.06266952,3228.5,3227.8,0.97314967]
[1768825924089,0.8678158,3228.4,3227.8,0.97314967]
[1768825925606,0.8678158,3228.2,3227.6,0.97314967]
[1768825925776,0.8678158,3228.1,3227.5,0.97495127]
[1768825926086,0.8678158,3228.1,3227.5,0.0018016]
[1768825928006,0.8678158,3227.9,3227.8,0.001]
[1768825929805,3.80408678,3228.2,3227.8,0.001]
[1768825930391,4.67190258,3228.2,3227.8,0.001]
[1768825931414,4.67190258,3228.2,3227.8,0.97414967]
[1768825931609,3.22528825,3229.5,3227.8,0.97414967]
[1768825931610,6.19405988,3228.9,3227.8,0.97414967]
[1768825931783,0.8678158,3228.7,3227.8,0.97414967]
[1768825934409,0.8678158,3228.7,3227.9,0.97314967]
[1768825934609,0.8678158,3229.1,3227.9,0.97314967]
[1768825934913,1.53088471,3229.0,3228.1,0.97314967]
[1768825937117,4.62787763,3229.0,3228.1,0.97314967]
[1768825937415,4.62787763,3229.0,3228.2,0.97314967]
[1768825938781,0.8678158,3228.9,3228.2,0.97314967]
[1768825939581,0.002,3228.7,3228.2,0.97314967]
[1768825946121,0.8698158,3228.7,3228.2,0.97314967]
[1768825946416,1.2665113,3228.7,3228.2,0.97314967]
[1768825946617,0.8698158,3228.7,3228.2,0.97314967]
[1768825949499,0.8678158,3228.6,3228.0,0.51]
[1768825950902,0.8678158,3228.6,3228.0,1.41131302]
[1768825951623,0.002,3228.4,3228.0,1.41131302]
[1768825953220,0.8698158,3228.4,3228.0,0.51]
[1768825953423,0.8698158,3228.4,3227.8,0.90231302]
[1768825953994,0.8678158,3228.3,3227.8,0.90231302]
[1768825954191,0.8678158,3228.2,3227.8,0.90231302]
[1768825954914,0.8678158,3228.2,3227.8,0.001]
[1768825956800,3.96552664,3228.2,3227.8,0.001]
[1768825957123,0.8678158,3228.2,3227.8,0.001]
[1768825958413,0.002,3228.7,3228.1,0.90131302]
[1768825958615,0.002,3228.7,3228.3,0.90131302]
[1768825959326,0.002,3228.7,3228.4,0.90433535]
[1768825961112,0.002,3229.0,3228.5,0.90433535]
[1768825963440,0.002,3229.0,3228.7,0.90433535]
[1768825963602,0.90723723,3229.5,3228.8,0.90433535]
[1768825964007,0.0008016,3229.5,3228.8,0.90433535]
[1768825964738,0.0008008,3229.8,3229.1,0.90433535]
[1768825964939,0.0008008,3229.8,3229.3,0.90433535]
[1768825965939,0.90723603,3230.1,3229.4,0.90433535]
[1768825966144,0.002,3230.3,3229.4,0.90433535]
[1768825966442,0.002,3230.3,3229.3,3.09664019]
[1768825966443,0.002,3230.3,3229.6,0.90433535]
[1768825966738,0.002,3230.3,3229.8,0.90433535]
[1768825967240,0.90843563,3230.3,3229.8,0.90433535]
[1768825968025,0.002,3230.3,3229.8,0.90433535]
[1768825970542,0.002,3230.3,3229.8,3.09614044]
[1768825970846,0.002,3230.3,3229.9,0.90433535]
[1768825971911,0.90643563,3230.2,3229.7,0.51]
[1768825974349,0.98896749,3230.1,3229.7,0.51]
[1768825974549,0.98896749,3230.1,3229.6,0.51]
[1768825974930,0.98896749,3230.1,3229.6,1.52219176]
[1768825975657,0.98896749,3230.0,3229.6,0.51]
[1768825976427,0.98896749,3229.9,3229.6,0.51]
[1768825977458,0.002,3230.3,3229.7,1.01219176]
[1768825977763,3.09769323,3230.3,3229.7,1.01219176]
[1768825978061,0.99096749,3230.3,3229.7,1.01219176]
[1768825978260,4.0867015,3230.3,3229.7,1.01219176]
[1768825978448,0.98896749,3230.2,3229.7,1.01219176]
[1768825979256,0.98896749,3230.2,3229.1,1.01219176]
[1768825979425,0.98896749,3230.2,3229.2,0.51]
[1768825979631,0.98896749,3230.2,3229.2,1.52219176]
[1768825979836,0.98896749,3229.9,3228.8,1.01219176]
[1768825980028,0.98896749,3229.6,3228.6,1.52219176]
[1768825980264,0.98896749,3229.6,3228.7,1.01219176]
[1768825980561,0.98896749,3229.4,3228.7,1.01219176]
[1768825980872,0.98896749,3229.4,3228.6,1.52219176]
[1768825981735,0.98896749,3229.4,3228.6,0.51]
[1768825982048,0.98896749,3229.2,3228.6,0.51]
[1768825982650,0.71818766,3229.3,3228.6,0.51]
[1768825982651,0.98896749,3229.0,3228.6,0.51]
[1768825983073,0.98896749,3229.0,3228.4,0.0008008]
[1768825985077,0.98896749,3228.8,3228.4,0.0008008]
[1768825985281,6.19405988,3228.9,3228.4,0.0008008]
[1768825985282,0.98896749,3228.6,3228.4,0.0008008]
[1768825985789,0.98896749,3228.6,3228.1,1e-08]
[1768825985959,0.98896749,3228.6,3227.8,0.001802]
[1768825987055,0.98896749,3228.4,3227.8,0.001802]
[1768825987254,1.70734697,3228.3,3227.8,0.001802]
[1768825987578,1.70734697,3228.3,3228.1,0.001]
[1768825987952,0.98896749,3228.2,3227.8,0.001802]
[1768825989162,0.98896749,3228.1,3227.8,0.001802]
[1768825989365,0.40866749,3228.0,3227.8,0.001802]
[1768825992864,0.98896749,3227.9,3227.8,0.001802]
[1768825993613,0.98896749,3229.0,3227.9,1.01219176]
[1768825993790,3.09683812,3229.1,3228.1,1.01219176]
[1768825993976,0.98896749,3229.2,3228.3,1.01219176]
[1768825993977,4.08574551,3229.2,3228.3,1.01219176]
[1768825994287,0.98896749,3229.4,3228.3,1.01219176]
[1768825994489,0.98896749,3229.4,3228.4,1.01219176]
[1768825995202,0.98896749,3229.4,3228.5,1.01219176]
[1768825995488,0.0008012,3229.8,3228.7,6.19444358]
[1768825995786,0.0008012,3229.8,3228.9,1.01219176]
[1768825995989,0.98976869,3229.8,3228.9,1.01219176]
[1768825996959,4.0859773,3229.8,3228.9,1.01219176]
[1768825997190,0.98976869,3229.8,3229.0,1.01219176]
[1768825997365,3.09701838,3229.8,3229.0,1.01219176]
[1768825997566,0.98896749,3229.7,3229.0,1.01219176]
[1768825999376,0.002,3229.5,3229.0,1.01219176]
[1768826004697,0.002,3229.5,3229.0,3.09691752]
[1768826004905,0.002,3229.5,3229.1,1.03556692]
[1768826005472,0.002,3229.5,3229.2,1.03556692]
[1768826005902,0.99446167,3229.5,3228.8,3.60706266]
[1768826006107,0.99446167,3229.5,3228.9,1.03556692]
[1768826006414,0.99446167,3229.5,3229.0,1.03556692]
[1768826006916,0.002,3229.5,3229.1,1.03556692]
[1768826007513,0.002,3229.5,3229.2,1.03556692]
[1768826008006,0.0028012,3229.8,3229.3,1.03556692]
[1768826008511,0.0028012,3229.8,3229.4,1.03556692]
[1768826011015,0.0028012,3229.8,3229.5,1.03556692]
[1768826011896,0.99326247,3230.1,3229.5,1.03556692]
[1768826011897,0.99326247,3230.1,3229.6,1.03556692]
[1768826012080,0.0008008,3230.1,3229.6,1.03556692]
[1768826012581,0.0008008,3230.1,3229.7,1.03556692]
[1768826014103,0.0008008,3230.1,3229.7,1.54556692]
[1768826016132,0.0008008,3230.1,3229.8,1.03556692]
[1768826016330,0.0008004,3230.5,3229.9,1.03556692]
[1768826016702,0.99326207,3230.5,3229.9,4.13158029]
[1768826017297,0.99326207,3230.5,3230.0,1.03556692]
[1768826017518,0.99326207,3230.5,3230.1,0.51]
[1768826021929,1.06552663,3230.4,3230.1,0.51]
[1768826022491,0.0008004,3230.5,3230.2,1.12767761]
[1768826023126,1.06632703,3230.5,3230.1,0.511]
[1768826026657,0.0008004,3230.5,3230.1,1.63867761]
[1768826027204,1.06632703,3230.5,3230.1,1.63867761]
[1768826027399,1.06632703,3230.5,3230.1,0.511]
[1768826028643,1.06552663,3230.4,3230.1,0.001]
[1768826028833,0.0008004,3230.5,3230.1,0.001]
[1768826029050,1.06632703,3230.5,3230.1,0.001]
[1768826030325,1.06552663,3230.4,3230.1,0.001]
[1768826032108,0.0008004,3230.5,3230.1,1.12867761]
[1768826032314,1.06632703,3230.5,3230.1,1.12867761]
[1768826033843,0.0008004,3230.5,3230.1,1.12867761]
[1768826034250,0.0008004,3230.8,3230.3,1.10131751]
[1768826034748,0.0008004,3230.8,3230.2,0.51]
[1768826034749,1.09552205,3230.8,3230.2,0.51]
[1768826035839,1.09552205,3230.8,3230.2,1.61131751]
[1768826036342,1.09552205,3230.8,3230.3,1.10131751]
[1768826037241,4.19073515,3230.8,3230.3,1.10131751]
[1768826038456,1.09552205,3230.8,3230.3,1.10131751]
[1768826039048,1.09552205,3230.8,3230.3,1.61131751]
[1768826039252,1.09552205,3230.8,3230.3,1.10131751]
[1768826039550,1.09472165,3230.7,3230.2,0.51]
[1768826041220,0.0008004,3230.8,3230.3,1.26254926]
[1768826041451,0.0008004,3230.8,3230.4,1.10131751]
[1768826043861,0.0008004,3230.8,3230.6,1.10131751]
[1768826044160,0.0008004,3230.8,3230.7,1.10131751]
[1768826044363,1.28407399,3231.1,3230.7,1.10131751]
[1768826044364,1.28407399,3231.1,3230.8,1.10131751]
[1768826047756,1.28407399,3231.1,3230.6,0.51]
[1768826047939,1.28407399,3231.1,3230.6,1.61131751]
[1768826048135,4.3790173,3231.1,3230.6,1.61131751]
[1768826048340,1.09472165,3231.0,3230.3,0.16123175]
[1768826048541,1.09472165,3231.0,3230.4,0.51]
[1768826050057,3.09502301,3231.0,3230.4,1.61131751]
[1768826050257,1.09472165,3230.9,3230.4,1.61131751]
[1768826051933,1.09472165,3230.9,3230.4,0.51]
[1768826052334,1.09472165,3230.9,3230.4,1.61131751]
[1768826053565,1.09472165,3231.0,3230.5,1.10131751]
[1768826053761,2.37879564,3231.1,3230.5,1.10131751]
[1768826054571,1.09472165,3231.0,3230.5,1.10131751]
[1768826055463,1.09472165,3231.0,3230.4,0.51]
[1768826055965,1.09472165,3231.0,3230.4,1.61131751]
[1768826056537,1.09472165,3230.9,3230.4,0.51]
[1768826058670,1.09472165,3230.9,3230.8,0.001]
[1768826058858,1.09472165,3230.9,3230.4,0.51]
[1768826059036,1.09472165,3230.7,3230.4,0.51]
[1768826059554,0.002,3230.8,3230.4,1.61131751]
[1768826059865,0.002,3230.8,3230.4,4.86803615]
[1768826060039,0.002,3230.8,3230.5,1.10131751]
[1768826062971,0.002,3230.8,3230.6,1.25392513]
[1768826065174,1.28407399,3231.1,3230.7,1.25392513]
[1768826065339,2.48886494,3231.1,3230.8,0.74446633]
[1768826065972,1.20679095,3231.3,3230.9,1.25392513]
[1768826066271,0.002,3231.3,3231.0,1.25392513]
[1768826068152,0.002,3231.3,3231.0,1.81427181]
[1768826068369,0.002,3231.3,3231.0,4.90927388]
[1768826069072,0.002,3231.3,3231.1,1.25392513]
[1768826069848,0.002,3231.3,3231.0,3.65534875]
[1768826069849,0.002,3231.3,3231.0,0.56034668]
[1768826070179,0.002,3231.3,3230.9,4.85902926]
[1768826070677,0.002,3231.3,3230.9,1.76392513]
[1768826070867,0.002,3231.3,3230.9,4.85897841]
[1768826071183,0.002,3231.3,3230.9,1.76392513]
[1768826071358,0.002,3231.3,3231.0,3.0950093]
[1768826071553,0.002,3231.3,3231.0,3.89052713]
[1768826071774,0.002,3231.3,3231.2,1.25392513]
[1768826072963,0.002,3231.3,3231.2,4.34875058]
[1768826073161,0.002,3231.3,3231.2,3.09482545]
[1768826073374,0.002,3231.3,3231.1,4.34880206]
[1768826073588,0.002,3231.3,3231.2,2.07785675]
[1768826073877,5.75374812,3232.4,3231.2,2.07785675]
[1768826073878,0.0028,3232.1,3231.4,4.34855903]
[1768826074078,0.0028,3232.4,3231.7,1.25392513]
[1768826074278,1.20759095,3232.4,3231.8,1.25270379]
[1768826074457,1.20759095,3232.4,3231.8,1.76392513]
[1768826074776,0.0028,3232.4,3231.9,1.25392513]
[1768826076160,1.20759095,3232.4,3232.0,0.51]
[1768826076363,1.20633982,3232.4,3232.1,0.51]
[1768826076578,1.20633982,3232.4,3231.9,0.51]
[1768826077454,0.00154887,3232.4,3232.0,1.25392513]
[1768826078162,1.20633982,3232.4,3232.0,1.25392513]
[1768826078564,1.20633982,3232.4,3231.9,0.51]
[1768826078766,1.20633982,3232.4,3231.9,3.60413057]
[1768826079087,1.20633982,3232.4,3231.9,4.8580557]
[1768826079289,1.20633982,3232.4,3231.9,1.76392513]
[1768826079579,1.20633982,3232.4,3231.9,0.51]
[1768826079975,1.20633982,3232.4,3231.9,3.60414533]
[1768826080151,1.20633982,3232.4,3231.9,0.51]
[1768826080556,1.20633982,3232.4,3231.9,1.21854747]
[1768826080755,1.20633982,3232.4,3232.0,0.509]
[1768826081584,1.20633982,3232.4,3232.0,1.72754747]
[1768826082369,1.20633982,3232.4,3232.0,4.82159111]
[1768826082565,0.00154887,3232.4,3232.1,1.21854747]
[1768826082956,0.002,3232.6,3232.1,1.21854747]
[1768826083163,1.19952225,3232.9,3232.2,1.21854747]
[1768826083480,1.20332225,3233.1,3232.3,1.21854747]
[1768826083655,1.20332225,3233.1,3232.5,1.21854747]
[1768826084262,1.20332225,3233.1,3232.6,0.509]
[1768826084667,1.19952225,3233.0,3232.0,0.48215911]
[1768826084872,1.19952225,3233.0,3232.2,1.21854747]
[1768826085276,1.19952225,3233.0,3232.4,1.21854747]
[1768826085460,1.19952225,3233.0,3232.2,4.31238064]
[1768826085663,1.19952225,3233.0,3232.5,0.509]
[1768826085963,1.19952225,3233.0,3232.5,1.72754747]
[1768826086657,0.0038,3233.1,3232.6,1.21854747]
[1768826086858,1.20332225,3233.1,3232.6,1.21854747]
[1768826087460,1.20332225,3233.1,3232.5,0.509]
[1768826087662,1.20332225,3233.1,3232.5,1.72754747]
[1768826087863,1.20332225,3233.1,3232.5,0.509]
[1768826088095,1.19952225,3233.0,3232.5,0.14821667]
[1768826088589,1.19952225,3233.0,3232.3,3.09372007]
[1768826088891,1.19952225,3233.0,3232.4,0.509]
[1768826090801,1.19952225,3232.9,3232.2,0.509]
[1768826090972,1.19952225,3232.9,3232.2,3.60286752]
[1768826091499,1.19952225,3232.9,3232.2,0.509]
[1768826091677,1.19952225,3232.8,3232.2,0.509]
[1768826091992,1.19952225,3232.8,3232.1,0.509]
[1768826092381,1.19952225,3232.7,3232.0,0.509]
[1768826092783,1.20834841,3232.5,3232.0,0.509]
[1768826093099,1.20834841,3232.1,3231.1,1.22391103]
[1768826093467,1.20834841,3232.1,3231.2,0.509]
[1768826094090,1.20834841,3232.1,3231.4,4.31853977]
[1768826094294,1.20834841,3232.1,3231.4,4.31853824]
[1768826094484,1.20834841,3232.1,3231.4,1.22391103]
[1768826096299,1.20834841,3232.1,3231.7,0.001]
[1768826097095,1.20834841,3232.1,3231.7,1.22491103]
[1768826098301,1.20834841,3232.1,3231.7,0.001]
[1768826099682,1.20834841,3232.4,3231.7,1.22491103]
[1768826099883,1.20834841,3232.3,3231.7,1.22491103]
[1768826101375,0.002,3232.6,3231.8,1.22391103]
[1768826101570,0.002,3232.6,3232.0,1.22391103]
[1768826102100,0.002,3232.9,3232.0,1.22391103]
[1768826102401,0.0038,3233.4,3232.2,1.22391103]
[1768826102602,0.0028,3233.7,3232.6,1.22391103]
[1768826102780,0.0008,3234.0,3233.1,1.22391103]
[1768826102971,0.0008,3234.0,3233.3,1.19298103]
[1768826103378,0.0008,3234.0,3233.5,1.22391103]
[1768826103778,1.20869895,3236.3,3234.4,1.22391103]
[1768826104009,1.20869895,3236.3,3234.3,0.0008004]
[1768826104010,1.04694877,3235.3,3234.3,0.0008004]
[1768826104219,1.20834841,3235.9,3234.3,1.22471143]
[1768826104380,5.75094812,3235.4,3234.3,1.22471143]
[1768826104686,1.20834841,3234.5,3233.9,0.0008004]
[1768826104899,0.509,3235.0,3233.9,1.22471143]
[1768826105209,1.20834841,3235.0,3233.9,1.22471143]
[1768826105408,1.20834841,3234.7,3233.9,0.0008004]
[1768826106176,1.20834841,3234.4,3233.9,0.0008004]
[1768826106410,0.69592965,3234.3,3233.9,0.0008004]
[1768826106585,1.20834841,3234.5,3233.9,0.0008004]
[1768826106789,1.20709728,3234.3,3233.6,0.0008004]
[1768826106987,1.20709728,3234.3,3233.3,0.0008004]
[1768826106988,1.20834841,3234.0,3233.3,0.0008004]
[1768826107187,1.20834841,3233.9,3233.3,0.0008004]
[1768826107593,4.30059851,3233.9,3233.3,0.0008004]
[1768826107809,0.48095985,3233.8,3233.3,0.0008004]
[1768826108479,1.20834841,3234.8,3233.3,1.22471143]
[1768826108682,1.20834841,3234.5,3233.3,1.22471143]
[1768826109188,0.509,3234.4,3233.3,1.22471143]
[1768826109388,3.09185913,3234.3,3233.3,1.22471143]
[1768826109711,0.98992075,3234.2,3233.4,1.22391103]
[1768826110911,0.509,3234.1,3233.4,1.22391103]
[1768826111090,3.09185913,3234.3,3233.4,1.22391103]
[1768826111289,0.509,3234.2,3233.4,1.22391103]
[1768826111811,4.30012682,3234.4,3233.4,4.31661323]
[1768826112108,0.43001268,3234.3,3233.6,1.22391103]
[1768826112320,0.002,3234.2,3233.6,1.22391103]
[1768826112823,0.002,3234.2,3233.7,1.22391103]
[1768826115817,1.21034841,3234.2,3233.3,0.0008004]
[1768826116499,1.20834841,3234.0,3233.0,0.0008004]
[1768826116686,4.8096333,3233.9,3233.0,1.22471143]
[1768826116882,4.3006333,3233.9,3233.0,1.22471143]
[1768826117098,0.509,3233.8,3233.0,1.22471143]
[1768826117606,1.71734841,3233.8,3233.0,1.22471143]
[1768826117802,1.20834841,3233.7,3233.0,0.0008004]
[1768826118915,4.30079273,3233.7,3233.0,0.0008004]
[1768826119120,1.20834841,3233.7,3233.0,0.0008004]
[1768826119790,4.30085786,3233.7,3233.0,0.0008004]
[1768826120402,1.20834841,3233.6,3233.0,0.0008004]
[1768826120597,1.20834841,3233.5,3233.0,0.0008004]
[1768826120801,1.20834841,3233.4,3233.0,0.0008004]
[1768826121002,0.509,3233.3,3233.0,0.0008004]
[1768826123022,0.509,3233.3,3232.6,1.22471143]
[1768826123327,3.60182661,3233.3,3232.6,1.22471143]
[1768826123531,0.509,3233.3,3232.6,1.65664669]
[1768826123820,3.60185275,3233.3,3232.6,1.65664669]
[1768826124022,0.509,3233.3,3232.6,1.65664669]
[1768826124196,3.60181849,3233.3,3232.6,1.65664669]
[1768826124392,4.92691065,3233.3,3232.6,1.22471143]
[1768826124630,3.09226916,3233.9,3232.6,1.22471143]
[1768826124631,1.83409216,3233.2,3232.6,1.22471143]
[1768826124988,4.92701949,3233.2,3232.6,0.0008004]
[1768826125333,1.32509216,3233.1,3232.6,0.0008004]
[1768826125909,1.32509216,3233.1,3232.5,0.001]
[1768826126119,1.32509216,3232.9,3232.5,0.001]
[1768826126292,1.32509216,3232.9,3232.3,0.0008004]
[1768826126588,6.69485466,3233.2,3232.3,1.30604264]
[1768826126589,0.509,3232.8,3232.3,1.30604264]
[1768826127391,0.509,3232.8,3232.4,1.30524224]
[1768826130428,0.509,3232.8,3232.3,0.0008004]
[1768826130928,1.83409216,3232.8,3232.3,0.0008004]
[1768826131140,2.01750138,3232.8,3232.3,0.0008004]
[1768826131644,1.32509216,3232.7,3232.3,0.0008004]
[1768826133496,4.41851975,3232.7,3232.3,0.0008004]
[1768826133823,3.78570844,3232.8,3232.0,1.30604264]
[1768826133824,1.32509216,3232.6,3232.0,1.30604264]
[1768826134017,0.509,3232.5,3232.1,1.30524224]
[1768826134221,0.509,3232.4,3232.1,1.30524224]
[1768826136499,0.509,3232.5,3232.1,1.30524224]
[1768826137108,1.32509216,3232.7,3232.1,1.30524224]
[1768826137310,3.09224156,3233.9,3232.3,1.30524224]
[1768826137510,0.002,3233.3,3232.3,1.30524224]
[1768826137935,0.00234968,3234.0,3233.2,1.30524224]
[1768826139902,4.2359556,3234.0,3233.1,3.09300671]
[1768826140205,4.2359556,3234.0,3233.2,1.26933366]
[1768826140206,0.93259556,3233.9,3233.2,1.26933366]
[1768826140513,0.509,3233.9,3233.2,1.26933366]
[1768826141129,7.32818123,3234.0,3233.2,1.26933366]
[1768826141130,4.23599404,3234.0,3233.2,1.26933366]
[1768826141331,0.509,3233.8,3233.2,1.26933366]
[1768826141702,1.14380685,3234.0,3233.2,1.26933366]
[1768826141926,0.509,3233.9,3233.2,1.26933366]
[1768826143213,3.60125804,3233.9,3233.2,1.26933366]
[1768826143416,5.52470107,3233.9,3233.2,1.26933366]
[1768826143749,1.13972232,3233.8,3232.8,1.26933366]
[1768826144117,1.13972232,3233.7,3232.8,1.26933366]
[1768826144440,1.92054171,3233.9,3232.9,1.26933366]
[1768826144742,0.509,3233.7,3232.9,1.26933366]
[1768826144920,0.509,3233.7,3233.1,1.26933366]
[1768826146027,0.509,3233.8,3233.1,1.26933366]
[1768826146418,3.601343,3233.8,3233.1,1.26933366]
[1768826146615,4.22346095,3233.8,3233.1,1.26933366]
[1768826147604,1.12831546,3233.7,3232.9,4.3625237]
[1768826147803,1.12831546,3233.7,3233.0,3.52935408]
[1768826148032,1.12831546,3233.7,3233.0,1.70558603]
[1768826148236,1.12831546,3233.7,3233.0,1.26933366]
[1768826148846,1.12554515,3233.6,3232.5,1.26933366]
[1768826149043,1.12554515,3233.6,3232.8,4.36262263]
[1768826149234,1.12554515,3233.6,3232.8,4.36261082]
[1768826149435,1.12554515,3233.6,3232.9,1.26933366]
[1768826149636,3.0945091,3234.0,3233.0,1.26933366]
[1768826149637,0.00234968,3234.0,3233.0,1.26933366]
[1768826149820,0.51134968,3234.0,3233.2,1.26933366]
[1768826150021,0.51134968,3234.0,3233.4,1.26933366]
[1768826150421,0.00234968,3234.0,3233.5,1.26933366]
[1768826151326,0.50634968,3234.1,3233.5,1.26933366]
[1768826151643,1.62377339,3234.1,3233.3,4.79831882]
[1768826151845,1.62377339,3234.1,3233.3,4.79830089]
[1768826152050,1.62377339,3234.1,3233.3,1.7055677]
[1768826152265,1.62377339,3234.1,3233.3,1.26933366]
[1768826152553,1.62377339,3234.1,3233.3,4.36214086]
[1768826153323,1.62377339,3234.1,3233.4,1.33234252]
[1768826153932,0.002,3234.2,3233.4,1.33234252]
[1768826154333,0.002,3234.2,3233.6,1.33234252]
[1768826154549,0.002,3234.2,3233.8,1.33234252]
[1768826157252,0.002,3234.2,3233.7,0.44249666]
[1768826157853,0.002,3234.2,3233.6,1.33234252]
[1768826159225,1.09909355,3234.2,3233.6,1.33234252]
[1768826160918,0.002,3234.2,3233.6,4.4248107]
[1768826161148,0.002,3234.2,3233.7,1.33234252]
[1768826162128,0.002,3234.2,3233.8,1.33234252]
[1768826163123,0.002,3234.2,3233.7,1.77482359]
[1768826163853,0.002,3234.2,3233.7,1.77357247]
[1768826164459,0.002,3234.2,3233.8,0.001]
[1768826165659,0.002,3234.2,3233.8,1.33334252]
[1768826166837,0.002,3234.2,3233.8,4.42567151]
[1768826167952,0.002,3234.2,3233.8,1.33334252]
[1768826168148,1.07835931,3234.2,3233.8,0.001]
[1768826168355,0.16101597,3234.2,3233.8,1.33334252]
[1768826168551,0.002,3234.2,3233.8,1.33334252]
[1768826168952,1.07618577,3234.2,3233.8,0.001]
[1768826170058,1.07493465,3234.2,3233.3,3.09277462]
[1768826170259,0.509,3234.1,3233.4,1.33234252]
[1768826170763,1.57791331,3234.1,3233.4,1.33234252]
[1768826173799,0.00074888,3234.2,3233.4,1.33234252]
[1768826173800,0.00074888,3234.2,3233.5,1.33234252]
[1768826177064,0.00074888,3234.2,3233.6,1.33234252]
[1768826177470,0.002,3233.9,3233.6,1.33234252]
[1768826180451,1.05096703,3233.9,3233.3,0.509]
[1768826180656,0.002,3233.9,3233.4,1.33234252]
[1768826181062,0.002,3233.9,3233.4,4.42503433]
[1768826181377,0.002,3233.9,3233.5,1.33234252]
[1768826182070,0.002,3233.9,3233.3,0.509]
[1768826182071,1.04909597,3233.9,3233.3,1.84134252]
[1768826183077,1.04909597,3233.9,3233.3,1.33234252]
[1768826183274,1.04909597,3233.9,3233.1,1.25301789]
[1768826183486,1.04909597,3233.9,3233.2,1.25301789]
[1768826185076,0.002,3233.9,3233.2,1.25301789]
[1768826185276,0.002,3233.9,3233.4,1.25301789]
[1768826185575,1.04005812,3233.9,3233.2,3.09287269]
[1768826185777,1.04005812,3233.9,3233.2,4.34589058]
[1768826185980,1.04005812,3233.9,3233.3,1.25301789]
[1768826186548,0.002,3233.9,3233.3,1.25301789]
[1768826186755,0.00074888,3234.2,3233.5,1.25301789]
[1768826187475,0.00074888,3234.2,3233.7,1.25301789]
[1768826188688,0.00074888,3234.2,3233.9,1.25301789]
[1768826189053,0.0008004,3235.0,3234.1,1.25301789]
[1768826189253,0.0008004,3235.0,3234.3,1.25301789]
[1768826189478,0.0008004,3235.0,3234.5,1.25301789]
[1768826191156,0.0008004,3235.3,3234.7,1.25301789]
[1768826191466,0.00075056,3235.5,3235.1,1.25301789]
[1768826192094,0.0008004,3235.6,3235.0,0.509]
[1768826192095,0.0008004,3235.6,3235.0,3.60018536]
[1768826192261,0.0008004,3236.0,3235.1,1.25301789]
[1768826192460,1.0270513,3236.0,3235.1,1.25301789]